bitfinex/quotes_BTCUSD_20250515
["timestamp","ask_amount","ask_price","bid_price","bid_amount"]
[1747324255837,0.84498539,103170.0,103160.0,0.21478333]
[1747324256056,0.84454539,103170.0,103160.0,0.21478333]
[1747324256274,0.84454539,103170.0,103160.0,0.22447682]
[1747324256490,0.31608925,103170.0,103160.0,0.24386314]
[1747324256760,0.50994396,103170.0,103160.0,0.23417012]
[1747324257218,0.29670425,103170.0,103160.0,0.24386314]
[1747324257428,0.04176925,103170.0,103160.0,0.51730314]
[1747324257651,0.32494189,103170.0,103160.0,0.51730314]
[1747324257863,0.50910471,103170.0,103160.0,0.50761012]
[1747324258500,0.84830916,103170.0,103160.0,0.51730323]
[1747324258645,0.83861689,103170.0,103160.0,0.50761012]
[1747324258857,0.82892444,103170.0,103160.0,0.50761021]
[1747324259238,0.83861718,103170.0,103160.0,0.51730304]
[1747324259609,0.83861718,103170.0,103160.0,0.48822315]
[1747324259814,0.83861718,103170.0,103160.0,0.50760974]
[1747324260372,0.29586519,103170.0,103160.0,0.50760965]
[1747324260559,0.003,103170.0,103160.0,0.65161207]
[1747324260764,0.01269189,103170.0,103160.0,0.65161207]
[1747324261138,0.003,103170.0,103160.0,0.65161207]
[1747324262107,0.01269198,103170.0,103160.0,0.65161207]
[1747324262313,0.02238425,103170.0,103160.0,1.05273207]
[1747324262624,0.02238425,103170.0,103160.0,1.03333207]
[1747324262824,0.5772525,103170.0,103160.0,0.88755608]
[1747324263027,0.55544444,103170.0,103160.0,0.88755608]
[1747324263234,0.55544444,103170.0,103160.0,0.89724966]
[1747324263615,0.55544444,103170.0,103160.0,0.90694315]
[1747324263814,0.55544444,103170.0,103160.0,0.91663654]
[1747324264301,0.55544444,103170.0,103160.0,0.90694315]
[1747324264491,0.003,103170.0,103160.0,0.83780851]
[1747324264688,0.003,103170.0,103160.0,1.1289915]
[1747324264885,0.003,103170.0,103160.0,1.05104538]
[1747324265444,0.02238406,103170.0,103160.0,1.05104538]
[1747324265648,0.003,103170.0,103160.0,1.05104538]
[1747324266661,0.01269189,103170.0,103160.0,1.05104538]
[1747324267547,0.02238387,103170.0,103160.0,1.05104538]
[1747324267798,0.003,103170.0,103160.0,1.05104538]
[1747324268003,0.01269198,103170.0,103160.0,1.05104538]
[1747324270272,0.01269198,103170.0,103160.0,1.14104538]
[1747324270494,0.003,103170.0,103160.0,1.14104538]
[1747324270720,0.003,103170.0,103160.0,1.05104538]
[1747324271317,0.003,103170.0,103160.0,1.46034538]
[1747324272028,0.003,103170.0,103160.0,1.05104538]
[1747324272887,0.003,103170.0,103160.0,0.77760538]
[1747324273088,0.003,103170.0,103160.0,1.05100538]
[1747324273764,0.01269198,103170.0,103160.0,1.05100538]
[1747324273978,0.003,103170.0,103160.0,1.05100538]
[1747324275267,0.36401186,103170.0,103160.0,1.31390538]
[1747324275678,0.02238415,103170.0,103160.0,1.35140538]
[1747324275910,0.03207642,103170.0,103160.0,1.35140538]
[1747324276306,0.04176897,103170.0,103160.0,1.35140538]
[1747324276569,0.04176887,103170.0,103160.0,1.33230538]
[1747324277423,0.03207642,103170.0,103160.0,1.33230538]
[1747324277878,0.03207642,103170.0,103160.0,1.35160538]
[1747324278077,0.02238415,103170.0,103160.0,1.35160538]
[1747324278677,0.003,103170.0,103160.0,1.35160538]
[1747324280086,0.003,103170.0,103160.0,1.31390538]
[1747324280293,0.02238425,103170.0,103160.0,1.31390538]
[1747324280508,0.02238415,103170.0,103160.0,1.31390538]
[1747324281128,0.5748284,103170.0,103160.0,1.19720966]
[1747324281332,0.58452114,103170.0,103160.0,1.21659625]
[1747324281565,0.01269189,103170.0,103160.0,0.92628927]
[1747324281779,0.03207661,103170.0,103160.0,0.92628927]
[1747324282323,0.23562461,103170.0,103160.0,0.91659625]
[1747324282538,0.23562461,103170.0,103160.0,0.89720966]
[1747324282539,0.58393718,103170.0,103160.0,0.89720966]
[1747324282726,0.59334463,103170.0,103160.0,0.88751608]
[1747324282927,0.59334463,103170.0,103160.0,0.89720975]
[1747324283144,0.59334463,103170.0,103160.0,0.90690333]
[1747324283566,0.58365199,103170.0,103160.0,0.89720975]
[1747324283796,0.67389565,103170.0,103160.0,0.69364249]
[1747324284000,0.58365199,103170.0,103160.0,0.69364249]
[1747324284183,0.58365199,103170.0,103160.0,0.69264249]
[1747324284785,0.58365199,103170.0,103160.0,0.00052249]
[1747324285045,0.93739729,103170.0,103160.0,0.00052249]
[1747324285365,0.05544085,103170.0,103160.0,0.00052249]
[1747324285579,0.003,103170.0,103160.0,0.22347598]
[1747324286208,0.003,103170.0,103160.0,0.26087598]
[1747324286636,0.003,103170.0,103160.0,0.24247598]
[1747324287131,0.01269198,103170.0,103160.0,0.32078538]
[1747324287339,0.04176915,103170.0,103160.0,0.22347598]
[1747324287553,0.05146179,103170.0,103160.0,0.22347598]
[1747324287767,0.003,103170.0,103160.0,0.35718538]
[1747324287984,0.01269189,103170.0,103160.0,0.35718538]
[1747324288191,0.003,103170.0,103160.0,0.64302538]
[1747324288599,0.01269189,103170.0,103160.0,0.64302538]
[1747324289047,0.003,103170.0,103160.0,0.64302538]
[1747324290302,0.01269189,103170.0,103160.0,0.62310304]
[1747324290512,0.02238406,103170.0,103160.0,0.60450304]
[1747324290726,0.35431966,103170.0,103160.0,0.59481002]
[1747324290930,0.58393661,103170.0,103160.0,0.49910066]
[1747324291135,0.25927301,103170.0,103160.0,0.49910066]
[1747324291350,0.59847746,103170.0,103160.0,0.50879396]
[1747324291573,0.58878529,103170.0,103160.0,0.48940726]
[1747324291784,0.59839284,103170.0,103160.0,0.28584]
[1747324291996,1.26790455,103170.0,103160.0,0.28584]
[1747324292201,0.03392773,103160.0,103150.0,0.35291352]
[1747324292407,0.39425593,103160.0,103150.0,0.35291352]
[1747324292624,0.39183218,103160.0,103150.0,0.35291352]
[1747324292857,0.06232103,103160.0,103150.0,0.36260748]
[1747324293093,0.40152548,103160.0,103150.0,0.36260748]
[1747324293307,1.00682218,103160.0,103150.0,0.12994]
[1747324293543,1.31010218,103160.0,103150.0,0.12994]
[1747324293729,1.41741158,103160.0,103150.0,0.12994]
[1747324293939,1.40841158,103160.0,103150.0,0.13094]
[1747324294096,1.39871819,103160.0,103150.0,0.13094]
[1747324294771,1.39771819,103160.0,103150.0,0.13094]
[1747324294975,1.39971819,103160.0,103150.0,0.13094]
[1747324295174,1.39971819,103160.0,103150.0,0.12994]
[1747324295938,0.002,103160.0,103150.0,0.3529151]
[1747324296181,0.002,103160.0,103150.0,0.4874245]
[1747324296788,0.34120445,103160.0,103150.0,0.4874245]
[1747324297238,0.36059057,103160.0,103150.0,0.3529151]
[1747324297440,0.37997745,103160.0,103150.0,0.3529151]
[1747324297658,0.37028387,103160.0,103150.0,0.3529151]
[1747324297857,1.18523785,103170.0,103150.0,0.3529151]
[1747324297858,0.00048379,103170.0,103160.0,0.57117359]
[1747324298066,0.00048379,103170.0,103160.0,0.73165261]
[1747324298293,0.25015237,103200.0,103190.0,0.26018867]
[1747324298501,0.25015237,103200.0,103190.0,1.07961807]
[1747324298707,0.25015237,103200.0,103190.0,1.07966587]
[1747324299938,0.25015237,103200.0,103190.0,1.08266587]
[1747324301180,0.25015237,103200.0,103190.0,0.36354587]
[1747324301382,0.25015237,103200.0,103190.0,0.78218587]
[1747324301587,0.25015237,103200.0,103190.0,1.08550587]
[1747324306933,0.25015237,103200.0,103190.0,0.78218587]
[1747324307147,0.25015237,103200.0,103190.0,1.08546587]
[1747324309240,0.25015237,103200.0,103190.0,1.42246587]
[1747324309562,0.25015237,103200.0,103190.0,1.43900672]
[1747324309775,0.25015237,103200.0,103190.0,1.44304672]
[1747324310685,0.25015237,103200.0,103190.0,1.73098587]
[1747324311856,0.25015237,103200.0,103190.0,1.08838587]
[1747324315051,0.25015237,103200.0,103190.0,1.06968587]
[1747324315403,0.25015237,103200.0,103190.0,0.74784587]
[1747324315606,0.25015237,103200.0,103190.0,0.32928587]
[1747324315811,0.25984163,103200.0,103190.0,0.32928587]
[1747324316044,0.76232354,103200.0,103190.0,0.63248587]
[1747324316510,0.94741171,103200.0,103190.0,0.32028587]
[1747324316720,0.75361327,103200.0,103190.0,0.62348587]
[1747324316938,0.75361327,103200.0,103190.0,0.62448587]
[1747324317157,0.73423409,103200.0,103190.0,0.62448587]
[1747324317458,0.74392363,103200.0,103190.0,0.62448587]
[1747324317677,0.28763117,103200.0,103190.0,0.62348587]
[1747324317884,0.75361336,103200.0,103190.0,0.62348587]
[1747324318088,0.75361336,103200.0,103190.0,0.32028587]
[1747324318324,0.75361336,103200.0,103190.0,0.62552587]
[1747324318541,0.74392363,103200.0,103190.0,0.62552587]
[1747324318925,0.74392363,103200.0,103190.0,0.62352587]
[1747324319190,0.75361308,103200.0,103190.0,0.62352587]
[1747324320169,0.74392344,103200.0,103190.0,0.62352587]
[1747324320380,0.75361308,103200.0,103190.0,0.62352587]
[1747324320603,0.7633029,103200.0,103190.0,0.62352587]
[1747324320804,0.76330281,103200.0,103190.0,0.62352587]
[1747324321198,0.76330281,103200.0,103190.0,0.32028587]
[1747324321355,0.76330281,103200.0,103190.0,0.62352587]
[1747324321556,0.75361308,103200.0,103190.0,0.62352587]
[1747324321970,0.76330281,103200.0,103190.0,0.62352587]
[1747324322178,0.75361308,103200.0,103190.0,0.62352587]
[1747324322376,0.28763098,103200.0,103190.0,0.62352587]
[1747324322582,0.73423409,103200.0,103190.0,0.62352587]
[1747324322783,0.25015237,103200.0,103190.0,0.32028587]
[1747324322984,0.25015237,103200.0,103190.0,0.65376587]
[1747324323192,0.25015237,103200.0,103190.0,0.73171199]
[1747324323711,0.25015237,103200.0,103190.0,0.73831603]
[1747324323911,0.25015237,103200.0,103190.0,1.48761603]
[1747324324082,0.25015237,103200.0,103190.0,1.49061603]
[1747324324765,0.25015237,103200.0,103190.0,1.84346991]
[1747324325804,0.25015237,103200.0,103190.0,1.74408991]
[1747324326020,0.00031864,103230.0,103220.0,0.60022388]
[1747324326227,0.00031864,103230.0,103220.0,0.71708215]
[1747324327121,0.00031864,103230.0,103220.0,0.72368619]
[1747324327333,0.00031864,103230.0,103220.0,0.72668619]
[1747324328714,0.00031864,103230.0,103220.0,0.70738619]
[1747324328917,0.00031864,103230.0,103220.0,1.01210619]
[1747324329141,0.00031864,103230.0,103220.0,0.97745732]
[1747324330605,0.00031864,103230.0,103220.0,0.33273732]
[1747324330809,0.00031864,103230.0,103220.0,0.63737732]
[1747324331218,0.00031864,103230.0,103220.0,0.63077328]
[1747324331422,0.00031864,103230.0,103220.0,0.97077328]
[1747324332128,0.4565627,103230.0,103220.0,0.63077328]
[1747324332397,0.46624896,103230.0,103220.0,0.63077328]
[1747324332787,0.4946354,103230.0,103220.0,0.63077328]
[1747324333018,0.53280894,103230.0,103220.0,0.63077328]
[1747324333459,0.71686537,103230.0,103220.0,0.30675824]
[1747324333716,0.69749183,103230.0,103220.0,0.1003094]
[1747324333955,0.69749183,103230.0,103220.0,0.50908893]
[1747324334165,1.00417183,103230.0,103220.0,0.30564]
[1747324334336,1.00417183,103230.0,103220.0,0.50908874]
[1747324334544,0.99448482,103230.0,103220.0,0.30564]
[1747324335128,0.99448482,103230.0,103220.0,0.30464]
[1747324336528,0.99448482,103230.0,103220.0,0.49840089]
[1747324336736,0.3340649,103230.0,103220.0,0.63446132]
[1747324336928,0.7812955,103230.0,103220.0,0.63446132]
[1747324337132,0.79098251,103230.0,103220.0,0.63446142]
[1747324337336,1.01371136,103230.0,103220.0,0.62477394]
[1747324337546,1.0220251,103230.0,103220.0,0.6344617]
[1747324337778,1.0220251,103230.0,103220.0,0.64414871]
[1747324337984,0.00031864,103230.0,103220.0,0.75979426]
[1747324338213,0.00031864,103230.0,103220.0,0.66364814]
[1747324338412,0.4565627,103230.0,103220.0,0.64514814]
[1747324338624,0.46624896,103230.0,103220.0,0.33950814]
[1747324338866,0.50492203,103230.0,103220.0,0.33950814]
[1747324339076,0.70707836,103230.0,103220.0,0.60539833]
[1747324339214,0.70707836,103230.0,103220.0,0.30464]
[1747324339215,0.69739173,103230.0,103220.0,0.30464]
[1747324339418,0.06646262,103220.0,103210.0,0.94592351]
[1747324339620,0.52512867,103220.0,103210.0,1.04323291]
[1747324339829,0.52270639,103220.0,103210.0,1.03354459]
[1747324340074,0.72615513,103220.0,103210.0,0.72890459]
[1747324340265,0.54208219,103220.0,103210.0,0.74828143]
[1747324340675,0.53239424,103220.0,103210.0,0.74828143]
[1747324341205,0.49364406,103220.0,103210.0,0.74828143]
[1747324341412,0.0374,103220.0,103210.0,0.74828143]
[1747324341617,0.0374,103220.0,103210.0,0.74928143]
[1747324341821,0.04708757,103220.0,103210.0,0.74828143]
[1747324342043,0.04708729,103220.0,103210.0,0.74828143]
[1747324342213,0.05677505,103220.0,103210.0,0.74828143]
[1747324342438,0.51301892,103220.0,103210.0,0.74828143]
[1747324342649,0.50333135,103220.0,103210.0,0.74828143]
[1747324342851,0.52270639,103220.0,103210.0,0.74828143]
[1747324343065,0.53239424,103220.0,103210.0,9.64019043]
[1747324343395,0.72615588,103220.0,103210.0,9.53319289]
[1747324343609,0.72615588,103220.0,103210.0,9.52350438]
[1747324343855,0.70678084,103220.0,103210.0,9.310349]
[1747324344259,0.69709299,103220.0,103210.0,9.310349]
[1747324344505,1.03709299,103220.0,103210.0,8.587229]
[1747324344706,1.15894324,103220.0,103210.0,7.85726085]
[1747324344865,1.16894324,103220.0,103210.0,7.85726085]
[1747324345061,6.21894324,103220.0,103210.0,7.85726085]
[1747324345945,6.6651873,103220.0,103210.0,7.85726085]
[1747324346149,6.30625264,103220.0,103210.0,7.85726085]
[1747324346788,6.30625264,103220.0,103210.0,7.85730085]
[1747324347456,0.71469918,103220.0,103210.0,7.98729085]
[1747324347692,1.17094324,103220.0,103210.0,7.98729085]
[1747324352077,6.21094324,103220.0,103210.0,7.98729085]
[1747324353346,0.20544893,103220.0,103210.0,7.98683411]
[1747324353508,0.002,103220.0,103210.0,8.2193682]
[1747324353714,0.01168729,103220.0,103210.0,8.2193682]
[1747324353920,0.02137486,103220.0,103210.0,8.2193682]
[1747324354357,0.01937486,103220.0,103210.0,8.2193682]
[1747324354592,0.03006262,103220.0,103210.0,8.2193682]
[1747324354798,0.02037486,103220.0,103210.0,8.2193682]
[1747324355017,0.03106262,103220.0,103210.0,8.20967988]
[1747324355252,0.03106262,103220.0,103210.0,8.2193682]
[1747324355453,0.23451155,103220.0,103210.0,8.2193682]
[1747324355679,0.002,103220.0,103210.0,8.5212882]
[1747324355903,0.002,103220.0,103210.0,8.6185976]
[1747324356114,0.0116872,103220.0,103210.0,8.6185976]
[1747324356325,0.03106234,103220.0,103210.0,8.6185976]
[1747324357161,0.02137468,103220.0,103210.0,8.6185976]
[1747324357315,0.03106225,103220.0,103210.0,8.6185976]
[1747324357485,0.0407501,103220.0,103210.0,8.3166776]
[1747324357687,0.0407501,103220.0,103210.0,8.6185976]
[1747324357900,0.0407501,103220.0,103210.0,8.51160006]
[1747324358103,0.05043805,103220.0,103210.0,8.52128838]
[1747324359519,0.05043805,103220.0,103210.0,8.50191146]
[1747324359770,0.21513669,103220.0,103210.0,8.49222276]
[1747324359982,0.20544884,103220.0,103210.0,8.28875411]
[1747324360186,0.20544884,103220.0,103210.0,8.48253378]
[1747324360391,0.20544884,103220.0,103210.0,8.28875411]
[1747324360603,0.20544884,103220.0,103210.0,8.49222276]
[1747324360781,0.20544884,103220.0,103210.0,8.50191164]
[1747324361549,0.20544884,103220.0,103210.0,7.98683411]
[1747324361748,0.20544884,103220.0,103210.0,8.49222276]
[1747324362280,0.20544884,103220.0,103210.0,8.50191164]
[1747324362687,0.20544884,103220.0,103210.0,8.28875411]
[1747324362936,0.20544884,103220.0,103210.0,8.49222266]
[1747324363134,0.20544884,103220.0,103210.0,8.50191145]
[1747324365152,0.22364884,103220.0,103210.0,8.28875411]
[1747324365623,0.20544884,103220.0,103210.0,8.28875411]
[1747324366840,0.20544884,103220.0,103210.0,7.98683411]
[1747324367039,0.54544884,103220.0,103210.0,8.28871411]
[1747324367434,0.002,103220.0,103210.0,9.41862983]
[1747324368088,0.001,103220.0,103210.0,9.41862983]
[1747324368294,0.001,103220.0,103210.0,9.12336874]
[1747324368620,0.001,103220.0,103210.0,9.42524874]
[1747324369229,0.001,103220.0,103210.0,9.10882789]
[1747324369531,0.001,103220.0,103210.0,9.41070789]
[1747324369959,0.00031864,103230.0,103220.0,0.22282388]
[1747324370095,0.00031864,103230.0,103220.0,0.32013328]
[1747324371326,0.00031864,103230.0,103220.0,0.32113328]
[1747324375487,0.02211328,103230.0,103220.0,0.61521328]
[1747324375686,0.03906535,103230.0,103220.0,0.62490085]
[1747324375887,0.02937844,103230.0,103220.0,0.62490085]
[1747324376098,0.03906535,103230.0,103220.0,0.62490085]
[1747324376700,0.03906535,103230.0,103220.0,0.62390085]
[1747324376898,0.02069162,103230.0,103220.0,0.62390085]
[1747324377109,0.03137844,103230.0,103220.0,0.62390085]
[1747324377508,0.38106535,103230.0,103220.0,0.32013347]
[1747324377686,0.01937468,103220.0,103210.0,8.6281994]
[1747324377907,0.02179673,103220.0,103210.0,9.0195888]
[1747324378475,0.03148439,103220.0,103210.0,9.0195888]
[1747324378686,0.01937468,103220.0,103210.0,9.0195888]
[1747324378894,0.23493388,103220.0,103210.0,9.00021197]
[1747324379095,0.01937542,103220.0,103210.0,9.02927796]
[1747324379282,0.02906337,103220.0,103210.0,9.02927796]
[1747324379695,0.24364648,103220.0,103210.0,9.00990104]
[1747324379879,0.24122473,103220.0,103210.0,9.01958983]
[1747324380214,0.90951591,103220.0,103210.0,8.28091411]
[1747324380432,0.92901591,103220.0,103210.0,8.28091411]
[1747324380645,0.92901591,103220.0,103210.0,8.28191411]
[1747324380845,0.59103688,103220.0,103210.0,8.28191411]
[1747324381235,0.59103688,103220.0,103210.0,8.28091411]
[1747324381443,0.58134893,103220.0,103210.0,8.29060309]
[1747324381566,0.58234893,103220.0,103210.0,8.29060309]
[1747324381789,0.58234893,103220.0,103210.0,8.49407164]
[1747324382774,0.58234893,103220.0,103210.0,8.61075796]
[1747324382775,0.342,103220.0,103210.0,8.61075796]
[1747324382989,0.37106206,103220.0,103210.0,8.61075796]
[1747324383191,0.342,103220.0,103210.0,8.61075796]
[1747324383505,0.002,103220.0,103210.0,8.61075796]
[1747324383713,0.02137468,103220.0,103210.0,8.61075796]
[1747324383923,0.02137458,103220.0,103210.0,8.61075796]
[1747324384206,0.0116872,103220.0,103210.0,8.61075796]
[1747324385620,0.002,103220.0,103210.0,8.61075796]
[1747324385822,0.002,103220.0,103210.0,8.65325796]
[1747324386666,0.001,103220.0,103210.0,8.63225796]
[1747324386877,0.03906545,103230.0,103220.0,0.22282417]
[1747324387076,0.24249467,103230.0,103220.0,0.22282417]
[1747324387283,0.019692,103230.0,103220.0,0.22282417]
[1747324387483,0.02937891,103230.0,103220.0,0.23251155]
[1747324388610,0.04875302,103230.0,103220.0,0.23251155]
[1747324388995,0.26329514,103230.0,103220.0,0.21313669]
[1747324389193,0.25360851,103230.0,103220.0,0.51891192]
[1747324389396,0.25560851,103230.0,103220.0,0.51891192]
[1747324389747,0.25560851,103230.0,103220.0,0.5285994]
[1747324389966,0.25560851,103230.0,103220.0,0.52859874]
[1747324390171,0.05217872,103230.0,103220.0,0.52859874]
[1747324390679,0.25560785,103230.0,103220.0,0.22282388]
[1747324390901,0.07417872,103230.0,103220.0,0.51891126]
[1747324391307,0.26792084,103230.0,103220.0,0.50922388]
[1747324391513,0.07417872,103230.0,103220.0,0.51891126]
[1747324392120,0.26792084,103230.0,103220.0,0.50922388]
[1747324392289,0.26792084,103230.0,103220.0,0.51891126]
[1747324392494,0.07417872,103230.0,103220.0,0.51891126]
[1747324392716,0.07417872,103230.0,103220.0,0.51891136]
[1747324392717,0.60792084,103230.0,103220.0,0.51891136]
[1747324392891,0.60792084,103230.0,103220.0,0.23251136]
[1747324393113,0.60792084,103230.0,103220.0,0.51891136]
[1747324393318,0.59823468,103230.0,103220.0,0.48016089]
[1747324393526,0.59823468,103230.0,103220.0,0.49953688]
[1747324393727,0.58854777,103230.0,103220.0,0.49953688]
[1747324395107,0.5982345,103230.0,103220.0,0.50922454]
[1747324395407,0.33587898,103230.0,103220.0,0.5285994]
[1747324395597,0.00968644,103230.0,103220.0,0.5285994]
[1747324395798,0.15006,103240.0,103230.0,0.23248921]
[1747324395932,0.16943092,103240.0,103230.0,0.32979861]
[1747324396129,0.16943073,103240.0,103230.0,0.32979861]
[1747324396372,0.15006,103240.0,103230.0,0.35159861]
[1747324396572,0.15974532,103240.0,103230.0,0.35159861]
[1747324396889,0.17043083,103240.0,103230.0,0.35159861]
[1747324397198,0.17143083,103240.0,103230.0,0.35164641]
[1747324398180,0.18111652,103240.0,103230.0,0.35164641]
[1747324398696,0.18111643,103240.0,103230.0,0.35164641]
[1747324398842,0.16174532,103240.0,103230.0,0.35164641]
[1747324399049,0.18111642,103240.0,103230.0,0.35164641]
[1747324399497,0.17143083,103240.0,103230.0,0.35164641]
[1747324399702,0.18111643,103240.0,103230.0,0.35164641]
[1747324400433,0.16174532,103240.0,103230.0,0.35164641]
[1747324400755,0.17143092,103240.0,103230.0,0.35164641]
[1747324400956,0.16174532,103240.0,103230.0,0.35164641]
[1747324401170,0.17143092,103240.0,103230.0,0.35164641]
[1747324401810,0.17143092,103240.0,103230.0,0.48163641]
[1747324402327,0.15206,103240.0,103230.0,0.48163641]
[1747324402532,0.16174541,103240.0,103230.0,0.48163641]
[1747324402743,0.15206,103240.0,103230.0,0.48163641]
[1747324402951,0.16174541,103240.0,103230.0,0.48163641]
[1747324403367,0.18353841,103240.0,103230.0,0.45014997]
[1747324403569,0.18353841,103240.0,103230.0,0.8271578]
[1747324403570,0.74755577,103240.0,103230.0,0.8271578]
[1747324403829,1.08513406,103240.0,103230.0,0.5484778]
[1747324404067,1.08513406,103240.0,103230.0,0.8271578]
[1747324404384,1.18244346,103240.0,103230.0,0.5484778]
[1747324404585,1.18244346,103240.0,103230.0,0.8271578]
[1747324405177,1.24538431,103240.0,103230.0,0.5484778]
[1747324405912,1.34269371,103240.0,103230.0,0.1300378]
[1747324406986,1.29429371,103240.0,103230.0,0.1300378]
[1747324407200,1.09967491,103240.0,103230.0,0.1300378]
[1747324408414,1.37547491,103240.0,103230.0,0.1300378]
[1747324409582,1.48278431,103240.0,103230.0,0.1300378]
[1747324413776,1.13480528,103240.0,103230.0,0.1300378]
[1747324413961,1.03345588,103240.0,103230.0,0.3528401]
[1747324414157,0.97691503,103240.0,103230.0,0.34315366]
[1747324414397,0.98660119,103240.0,103230.0,0.35284029]
[1747324414724,0.9769155,103240.0,103230.0,0.32377992]
[1747324414863,0.9769155,103240.0,103230.0,0.33346702]
[1747324415477,0.96722952,103240.0,103230.0,0.33346702]
[1747324415684,0.96722952,103240.0,103230.0,0.34315403]
[1747324415884,0.96722952,103240.0,103230.0,0.33346702]
[1747324416608,0.96722952,103240.0,103230.0,0.1300378]
[1747324419011,0.99012952,103240.0,103230.0,0.1300378]
[1747324420684,1.32810855,103240.0,103230.0,0.1300378]
[1747324420833,1.3426494,103240.0,103230.0,0.1300378]
[1747324421189,1.3643494,103240.0,103230.0,0.1300378]
[1747324423303,2.01794723,103240.0,103230.0,0.1300378]
[1747324423475,7.04794723,103240.0,103230.0,0.1300378]
[1747324424501,0.01,103230.0,103210.0,7.85684411]
[1747324424708,1.10174727,103220.0,103210.0,7.85689209]
[1747324424892,1.09932474,103220.0,103210.0,7.85689209]
[1747324426313,1.10132474,103220.0,103210.0,7.85689209]
[1747324427289,1.09132474,103220.0,103210.0,7.85689209]
[1747324427703,1.09432474,103220.0,103210.0,7.85689209]
[1747324427902,1.19163414,103220.0,103210.0,7.85689209]
[1747324428104,1.20617499,103220.0,103210.0,7.85689209]
[1747324428526,6.24617499,103220.0,103210.0,7.85689209]
[1747324428738,6.25617499,103220.0,103210.0,7.85689209]
[1747324431599,1.06046559,103220.0,103210.0,7.85689209]
[1747324431815,1.30688474,103220.0,103210.0,7.85689209]
[1747324432271,1.32142559,103220.0,103210.0,7.85689209]
[1747324433891,1.33142559,103220.0,103210.0,7.85689209]
[1747324434084,6.38142559,103220.0,103210.0,7.85689209]
[1747324434288,6.47873499,103220.0,103210.0,7.85689209]
[1747324434513,6.46873499,103220.0,103210.0,7.85689209]
[1747324435482,6.49782699,103220.0,103210.0,7.85689209]
[1747324437586,6.50288686,103220.0,103210.0,7.85689209]
[1747324438464,6.22283486,103220.0,103210.0,7.85689209]
[1747324438690,6.48059486,103220.0,103210.0,7.85689209]
[1747324439416,6.47059486,103220.0,103210.0,7.85689209]
[1747324439620,6.48059486,103220.0,103210.0,7.85689209]
[1747324440529,6.11552546,103220.0,103210.0,7.85689209]
[1747324440690,1.15255534,103220.0,103210.0,7.85689209]
[1747324440901,1.17709619,103220.0,103210.0,7.85689209]
[1747324443873,1.16709619,103220.0,103210.0,7.85689209]
[1747324444073,0.37891627,103220.0,103210.0,8.08316074]
[1747324444278,0.57267716,103220.0,103210.0,8.07347176]
[1747324444485,0.82747716,103220.0,103210.0,8.09427176]
[1747324444729,0.005,103220.0,103210.0,8.12333747]
[1747324444935,0.005,103220.0,103210.0,8.22064687]
[1747324445950,0.36905962,103230.0,103220.0,0.26582417]
[1747324446210,0.3593728,103230.0,103220.0,0.52138417]
[1747324446430,0.36905953,103230.0,103220.0,0.53107155]
[1747324446654,0.34968626,103230.0,103220.0,0.53107155]
[1747324446886,0.36905943,103230.0,103220.0,0.53107155]
[1747324447104,0.37874634,103230.0,103220.0,0.51169669]
[1747324447316,0.37874634,103230.0,103220.0,0.52138417]
[1747324447579,0.37874644,103230.0,103220.0,0.52138426]
[1747324447790,0.36905943,103230.0,103220.0,0.53107174]
[1747324448002,0.37874634,103230.0,103220.0,0.53107174]
[1747324448426,0.36905943,103230.0,103220.0,0.53107174]
[1747324448663,0.37874634,103230.0,103220.0,0.53107174]
[1747324449305,0.91046833,103230.0,103220.0,0.49232089]
[1747324449499,0.91046833,103230.0,103220.0,0.49029669]
[1747324449704,0.91046833,103230.0,103220.0,0.4902966]
[1747324449931,0.71672621,103230.0,103220.0,0.4902966]
[1747324450142,0.91046833,103230.0,103220.0,0.4902966]
[1747324450372,0.91046833,103230.0,103220.0,0.49998426]
[1747324451006,0.90078189,103230.0,103220.0,0.4902966]
[1747324451476,0.90078189,103230.0,103220.0,0.49029669]
[1747324451676,0.90078189,103230.0,103220.0,0.49998445]
[1747324452220,0.90078189,103230.0,103220.0,0.0216]
[1747324452430,0.89109516,103230.0,103220.0,0.47088089]
[1747324452628,0.89109516,103230.0,103220.0,0.48056893]
[1747324453060,0.01937561,103220.0,103210.0,8.18955846]
[1747324453265,0.36946351,103220.0,103210.0,8.45476688]
[1747324453461,0.02906243,103220.0,103210.0,8.45476688]
[1747324453862,0.89111581,103220.0,103210.0,8.11241209]
[1747324454098,0.35454085,103220.0,103210.0,8.09397176]
[1747324454304,0.15006,103240.0,103230.0,0.2661023]
[1747324454510,0.52880287,103240.0,103230.0,0.25641586]
[1747324454692,0.5191168,103240.0,103230.0,0.2661024]
[1747324454920,0.15006,103240.0,103230.0,0.37309824]
[1747324455296,0.49006,103240.0,103230.0,0.37309824]
[1747324456137,0.49206,103240.0,103230.0,0.37309824]
[1747324460076,1.05282003,103240.0,103230.0,0.44102212]
[1747324460302,0.51143092,103240.0,103230.0,0.50359585]
[1747324460507,0.52111671,103240.0,103230.0,0.52296902]
[1747324460713,0.53080269,103240.0,103230.0,0.52296902]
[1747324461136,0.73421221,103240.0,103230.0,0.52296921]
[1747324461348,0.72452689,103240.0,103230.0,0.49168258]
[1747324461570,0.71484129,103240.0,103230.0,0.48199604]
[1747324461778,0.50174551,103240.0,103230.0,0.50136921]
[1747324461989,0.51143111,103240.0,103230.0,0.53265565]
[1747324462196,0.49206,103240.0,103230.0,0.62996505]
[1747324462724,0.50174532,103240.0,103230.0,0.62996505]
[1747324462952,0.49206,103240.0,103230.0,0.62996505]
[1747324463614,0.5114311,103240.0,103230.0,0.38268505]
[1747324463877,0.5114311,103240.0,103230.0,0.62996505]
[1747324464077,0.5114311,103240.0,103230.0,0.38268505]
[1747324464190,0.5114311,103240.0,103230.0,0.62996505]
[1747324464604,0.50174541,103240.0,103230.0,0.62996505]
[1747324464799,0.5114311,103240.0,103230.0,0.62996505]
[1747324465253,0.51143101,103240.0,103230.0,0.62996505]
[1747324465966,0.52111689,103240.0,103230.0,0.62996505]
[1747324466265,0.5211168,103240.0,103230.0,0.62992505]
[1747324467161,0.51143101,103240.0,103230.0,0.62992505]
[1747324467363,0.5211167,103240.0,103230.0,0.62992505]
[1747324468485,0.53080258,103240.0,103230.0,0.62992505]
[1747324468685,0.5211167,103240.0,103230.0,0.62992505]
[1747324469310,0.53080268,103240.0,103230.0,0.62992505]
[1747324469562,0.5211167,103240.0,103230.0,0.62992505]
[1747324469991,0.49206,103240.0,103230.0,0.62992505]
[1747324470215,0.50174532,103240.0,103230.0,0.62992505]
[1747324470424,0.49206,103240.0,103230.0,0.62992505]
[1747324472133,0.15206,103240.0,103230.0,0.62992505]
[1747324472821,0.15206,103240.0,103230.0,0.62492505]
[1747324474963,0.16174532,103240.0,103230.0,0.62492505]
[1747324475144,0.15206,103240.0,103230.0,0.62492505]
[1747324480385,0.15206,103240.0,103230.0,0.61992505]
[1747324482867,0.15206,103240.0,103230.0,1.03832505]
[1747324484212,0.15206,103240.0,103230.0,1.04495254]
[1747324484566,0.15106,103240.0,103230.0,1.04495254]